bitfinex/quotes_BTCUSD_20250709
["timestamp","ask_amount","ask_price","bid_price","bid_amount"]
[1752046443132,0.17528233,108920.0,108910.0,0.48098373]
[1752046444371,0.17528233,108920.0,108910.0,0.47162469]
[1752046444733,0.18446329,108920.0,108910.0,0.47162469]
[1752046446555,0.18446329,108920.0,108910.0,0.47162235]
[1752046446773,0.48853865,108920.0,108910.0,0.47162235]
[1752046448019,0.67215965,108920.0,108910.0,0.46244105]
[1752046448431,0.66297911,108920.0,108910.0,0.46244105]
[1752046450423,0.66297911,108920.0,108910.0,0.40735207]
[1752046452114,0.65379849,108920.0,108910.0,0.39817069]
[1752046452637,0.65379849,108920.0,108910.0,0.45325967]
[1752046452802,0.65379849,108920.0,108910.0,0.46244105]
[1752046455423,0.65379849,108920.0,108910.0,0.46243304]
[1752046456458,0.46099644,108920.0,108910.0,0.47161434]
[1752046456872,0.47017749,108920.0,108910.0,0.47161434]
[1752046457711,0.65379849,108920.0,108910.0,0.46243304]
[1752046458345,0.34972389,108920.0,108910.0,0.46243304]
[1752046458543,0.65379849,108920.0,108910.0,0.46243304]
[1752046459299,0.65129849,108920.0,108910.0,0.46243304]
[1752046461506,0.65129849,108920.0,108910.0,0.46243513]
[1752046462260,0.64847135,108920.0,108910.0,0.46243513]
[1752046468587,0.64847135,108920.0,108910.0,0.43875095]
[1752046469940,0.64847135,108920.0,108910.0,0.42956974]
[1752046471458,0.64847135,108920.0,108910.0,0.45326635]
[1752046472399,0.64847135,108920.0,108910.0,0.44680364]
[1752046472714,0.64847135,108920.0,108910.0,0.42956974]
[1752046473783,0.64847135,108920.0,108910.0,0.44680367]
[1752046473991,0.64847135,108920.0,108910.0,0.42956974]
[1752046474401,0.64847135,108920.0,108910.0,0.45326639]
[1752046475506,0.64847135,108920.0,108910.0,0.46244794]
[1752046477731,0.64847135,108920.0,108910.0,0.45326639]
[1752046478256,0.64461761,108920.0,108910.0,0.45326639]
[1752046479710,0.64461761,108920.0,108910.0,0.43806639]
[1752046481777,0.64461761,108920.0,108910.0,0.43806612]
[1752046483865,0.64461761,108920.0,108910.0,0.42888448]
[1752046484086,0.63543665,108920.0,108910.0,0.42888448]
[1752046484734,0.63543665,108920.0,108910.0,0.42888365]
[1752046485144,0.6262556,108920.0,108910.0,0.40440193]
[1752046486974,0.183621,108920.0,108910.0,0.40440193]
[1752046487253,0.322181,108920.0,108910.0,0.44548348]
[1752046487582,0.6262556,108920.0,108910.0,0.44548348]
[1752046487782,0.6262556,108920.0,108910.0,0.44548341]
[1752046489609,0.63543648,108920.0,108910.0,0.44548341]
[1752046489811,0.63543648,108920.0,108910.0,0.41358358]
[1752046490013,0.63543648,108920.0,108910.0,0.42276522]
[1752046490803,0.63543648,108920.0,108910.0,0.43194677]
[1752046493713,0.33136188,108920.0,108910.0,0.43194686]
[1752046494033,0.63543648,108920.0,108910.0,0.43194686]
[1752046494982,0.63543648,108920.0,108910.0,0.44112833]
[1752046501631,0.63543648,108920.0,108910.0,0.43194686]
[1752046504540,0.63543648,108920.0,108910.0,0.42276531]
[1752046504751,0.63543648,108920.0,108910.0,0.42276536]
[1752046505356,0.63543648,108920.0,108910.0,0.42276538]
[1752046507098,0.64483425,108920.0,108910.0,0.42276538]
[1752046507631,0.64483425,108920.0,108910.0,0.42276559]
[1752046507841,0.63543648,108920.0,108910.0,0.42276559]
[1752046510209,0.64458383,108920.0,108910.0,0.42276559]
[1752046510570,0.64458383,108920.0,108910.0,0.42276576]
[1752046511195,0.63543648,108920.0,108910.0,0.42276576]
[1752046516512,0.63543648,108920.0,108910.0,0.42276689]
[1752046517677,0.6262556,108920.0,108910.0,0.41358525]
[1752046520061,0.6262556,108920.0,108910.0,0.40440353]
[1752046520766,0.9303302,108920.0,108910.0,0.21158387]
[1752046521330,0.9456302,108920.0,108910.0,0.12014658]
[1752046521530,0.9456302,108920.0,108910.0,0.0650576]
[1752046521531,0.9611302,108920.0,108910.0,0.0650576]
[1752046523632,1.2652048,108920.0,108910.0,0.0650576]
[1752046523811,0.9611302,108920.0,108910.0,0.02369679]
[1752046524581,1.2652048,108920.0,108910.0,0.02369679]
[1752046524786,1.44807866,108920.0,108910.0,0.02369679]
[1752046525216,1.80261951,108920.0,108910.0,0.02369679]
[1752046525620,1.83021651,108920.0,108910.0,0.02369679]
[1752046526475,1.83121651,108920.0,108910.0,0.02369679]
[1752046526735,1.83221651,108920.0,108910.0,0.02369679]
[1752046527415,1.83121651,108920.0,108910.0,0.02369679]
[1752046527930,1.83421651,108920.0,108910.0,0.02369679]
[1752046528123,1.83321651,108920.0,108910.0,0.02369679]
[1752046528514,1.83521651,108920.0,108910.0,0.02369679]
[1752046532018,1.83521651,108920.0,108910.0,0.02368087]
[1752046534722,1.83521651,108920.0,108910.0,0.02367879]
[1752046534907,1.83521651,108920.0,108910.0,0.01723404]
[1752046535438,0.56341958,108910.0,108900.0,0.0072112]
[1752046535627,1.31040878,108910.0,108900.0,0.03084035]
[1752046536158,1.37821021,108910.0,108900.0,0.03084035]
[1752046536558,1.37921021,108910.0,108900.0,0.0309803]
[1752046536758,1.38021021,108910.0,108900.0,0.0309803]
[1752046537243,1.31240878,108910.0,108900.0,0.0309803]
[1752046541157,1.31240878,108910.0,108900.0,0.03097943]
[1752046543113,1.17356878,108910.0,108900.0,0.03097943]
[1752046543315,1.31248878,108910.0,108900.0,0.03097943]
[1752046546862,1.31248878,108910.0,108900.0,0.03098796]
[1752046559335,1.31248878,108910.0,108900.0,0.03104709]
[1752046560501,1.29748878,108910.0,108900.0,0.03104709]
[1752046561344,1.29748878,108910.0,108900.0,0.03104735]
[1752046563361,1.31308878,108910.0,108900.0,0.03104735]
[1752046563948,1.34599718,108910.0,108900.0,0.03104735]
[1752046564154,1.48475718,108910.0,108900.0,0.00735115]
[1752046564402,1.48475718,108910.0,108900.0,0.0310485]
[1752046571521,1.04192258,108910.0,108900.0,0.0310485]
[1752046571727,1.38770656,108910.0,108900.0,0.0310485]
[1752046573055,1.38770656,108910.0,108900.0,0.02458559]
[1752046573261,1.38770656,108910.0,108900.0,0.03104649]
[1752046576082,1.38770656,108910.0,108900.0,0.0310464]
[1752046581337,0.77955736,108910.0,108900.0,0.0310464]
[1752046581548,1.38770656,108910.0,108900.0,0.0310464]
[1752046585106,1.41530656,108910.0,108900.0,0.0310464]
[1752046587085,1.41530656,108910.0,108900.0,0.02458257]
[1752046587293,1.41530656,108910.0,108900.0,0.03104435]
[1752046588366,1.41530656,108910.0,108900.0,0.03104565]
[1752046592795,1.41530656,108910.0,108900.0,0.02458623]
[1752046593040,1.41530656,108910.0,108900.0,0.03104938]
[1752046595641,1.41530656,108910.0,108900.0,0.0310501]
[1752046597139,1.43100656,108910.0,108900.0,0.0310501]
[1752046597336,1.43100656,108910.0,108900.0,0.03105011]
[1752046597706,1.41530656,108910.0,108900.0,0.03105008]
[1752046597922,1.50674349,108910.0,108900.0,0.03105008]
[1752046598150,1.53784349,108910.0,108900.0,0.03105007]
[1752046602188,1.53784349,108910.0,108900.0,0.02458673]
[1752046602388,1.53784349,108910.0,108900.0,0.03104946]
[1752046612507,1.84191809,108910.0,108900.0,0.03104946]
[1752046613691,1.84091809,108910.0,108900.0,0.03104946]
[1752046613928,1.84391809,108910.0,108900.0,0.03104946]
[1752046614692,1.84291809,108910.0,108900.0,0.03104946]
[1752046614995,1.84491809,108910.0,108900.0,0.03104946]
[1752046616498,1.84491809,108910.0,108900.0,0.02458673]
[1752046617235,1.84491809,108910.0,108890.0,0.0004]
[1752046617236,1.48554356,108900.0,108890.0,0.0004]
[1752046617445,1.80721742,108900.0,108890.0,0.00732415]
[1752046618876,1.83482242,108900.0,108890.0,0.00732415]
[1752046619210,1.83582242,108900.0,108890.0,0.00732415]
[1752046619781,1.83482242,108900.0,108890.0,0.00732415]
[1752046620191,1.83882242,108900.0,108890.0,0.00732415]
[1752046621499,1.70002242,108900.0,108890.0,0.00732415]
[1752046621708,1.83882242,108900.0,108890.0,0.00732415]
[1752046623269,1.83882242,108900.0,108890.0,0.00732263]
[1752046625278,1.82322242,108900.0,108890.0,0.00732263]
[1752046626778,0.89525862,108900.0,108890.0,0.00732263]
[1752046626999,1.80748242,108900.0,108890.0,0.00732263]
[1752046628493,1.66872242,108900.0,108890.0,0.00732263]
[1752046628710,1.80752242,108900.0,108890.0,0.00732263]
[1752046629311,1.66872242,108900.0,108890.0,0.02454021]
[1752046629504,1.71608549,108900.0,108890.0,0.02454021]
[1752046629714,1.41201089,108900.0,108890.0,0.02454021]
[1752046631334,1.41201089,108900.0,108890.0,0.02454144]
[1752046632168,1.41201089,108900.0,108890.0,0.02454263]
[1752046632574,1.71608549,108900.0,108890.0,0.02454263]
[1752046634660,1.80752242,108900.0,108890.0,0.02454263]
[1752046636937,1.71608549,108900.0,108890.0,0.02454263]
[1752046638153,1.71608549,108900.0,108890.0,0.00732561]
[1752046638385,1.71608549,108900.0,108890.0,0.02454919]
[1752046641905,0.80386169,108900.0,108890.0,0.02454919]
[1752046642104,1.41201089,108900.0,108890.0,0.02454919]
[1752046642312,1.71608549,108900.0,108890.0,0.02454919]
[1752046642735,1.41201089,108900.0,108890.0,0.02454919]
[1752046643166,1.50344782,108900.0,108890.0,0.02454919]
[1752046643590,1.41213089,108900.0,108890.0,0.05634919]
[1752046644283,1.42667174,108900.0,108890.0,0.0563653]
[1752046647224,1.42667174,108900.0,108890.0,0.05636692]
[1752046650461,1.42667174,108900.0,108890.0,0.05636797]
[1752046655075,0.81852254,108900.0,108890.0,0.05636797]
[1752046655264,1.42667174,108900.0,108890.0,0.05636797]
[1752046655749,1.50821239,108900.0,108890.0,0.05636797]
[1752046655911,1.50821239,108900.0,108890.0,0.05636698]
[1752046657475,0.90006319,108900.0,108890.0,0.05636698]
[1752046657605,1.50821239,108900.0,108890.0,0.05636698]
[1752046659359,1.48060739,108900.0,108890.0,0.05636691]
[1752046659554,1.39906674,108900.0,108890.0,0.05636691]
[1752046661279,1.39906674,108900.0,108890.0,0.04106691]
[1752046665222,1.39906674,108900.0,108890.0,0.02383046]
[1752046665490,1.39906674,108900.0,108890.0,0.02456746]
[1752046667782,1.70314134,108900.0,108890.0,0.02456746]
[1752046667946,1.79457827,108900.0,108890.0,0.02456746]
[1752046668155,1.80997827,108900.0,108890.0,0.02456746]
[1752046668386,1.85126733,108900.0,108890.0,0.02456746]
[1752046671268,1.85126733,108900.0,108890.0,0.02456907]
[1752046671678,1.86626733,108900.0,108890.0,1e-08]
[1752046672519,1.89387133,108900.0,108890.0,1e-08]
[1752046674288,0.54739585,108890.0,108880.0,2.6876]
[1752046674517,1.47721891,108890.0,108880.0,2.68764663]
[1752046675543,1.47821891,108890.0,108880.0,2.68764663]
[1752046677863,1.47821891,108890.0,108880.0,2.71984663]
[1752046678672,1.33941891,108890.0,108880.0,2.71984663]
[1752046678876,1.47825891,108890.0,108880.0,2.71984663]
[1752046683690,1.47825891,108890.0,108880.0,2.74353128]
[1752046692132,0.87010971,108890.0,108880.0,2.74353133]
[1752046692336,1.47825891,108890.0,108880.0,2.74353133]
[1752046697814,1.47825891,108890.0,108880.0,2.72630613]
[1752046698010,1.47825891,108890.0,108880.0,2.74353789]
[1752046698824,1.47825891,108890.0,108880.0,2.71133789]
[1752046700997,1.47825891,108890.0,108880.0,2.71134241]
[1752046703569,0.87010971,108890.0,108880.0,2.71134241]
[1752046703774,1.47825891,108890.0,108880.0,2.71134241]
[1752046703977,1.47825891,108890.0,108880.0,2.71135174]
[1752046711698,1.47825891,108890.0,108880.0,2.72735174]
[1752046716184,1.47825891,108890.0,108880.0,2.72735214]
[1752046716949,1.47825891,108890.0,108880.0,2.74275214]
[1752046717620,1.17418431,108890.0,108880.0,2.74275214]
[1752046718590,1.47825891,108890.0,108880.0,2.74275214]
[1752046719174,1.47825891,108890.0,108880.0,2.74275143]
[1752046725585,1.47825891,108890.0,108880.0,2.71135143]
[1752046728057,1.47825891,108890.0,108880.0,2.71135059]
[1752046733881,1.47825891,108890.0,108880.0,2.71135064]
[1752046737000,1.47825891,108890.0,108880.0,2.71134825]
[1752046739837,1.47825891,108890.0,108880.0,2.71134977]
[1752046744422,1.47825891,108890.0,108880.0,2.74204977]
[1752046744889,1.17418431,108890.0,108880.0,2.74205145]
[1752046746716,1.47825891,108890.0,108880.0,2.71135145]
[1752046748150,1.17418431,108890.0,108880.0,2.71135145]
[1752046748305,1.47825891,108890.0,108880.0,2.71135145]
[1752046749190,1.47825891,108890.0,108880.0,2.74375145]
[1752046751995,1.47825891,108890.0,108880.0,2.71135145]
[1752046753083,0.94390738,108890.0,108880.0,2.71135145]
[1752046753307,1.08298738,108890.0,108880.0,2.74275145]
[1752046755420,1.08298738,108890.0,108880.0,2.71135145]
[1752046755655,1.08298738,108890.0,108880.0,2.74315145]
[1752046759188,0.77891278,108890.0,108880.0,2.74315145]
[1752046759398,1.08298738,108890.0,108880.0,2.74315145]
[1752046759812,1.08298738,108890.0,108880.0,2.74315177]
[1752046762301,1.47849891,108890.0,108880.0,2.72795177]
[1752046762722,1.17442431,108890.0,108880.0,2.74385177]
[1752046762936,1.08298738,108890.0,108880.0,2.74385177]
[1752046763969,1.38706198,108890.0,108880.0,2.74385177]
[1752046764188,1.08298738,108890.0,108880.0,2.74385177]
[1752046766513,1.38706198,108890.0,108880.0,2.74385177]
[1752046766653,1.47849891,108890.0,108880.0,2.71135177]
[1752046768789,1.50610391,108890.0,108880.0,2.71135177]
[1752046771124,1.20202931,108890.0,108880.0,2.71135177]
[1752046771641,1.20202931,108890.0,108880.0,2.71135053]
[1752046774625,1.20202931,108890.0,108880.0,2.71135039]
[1752046775159,1.50610391,108890.0,108880.0,2.71135039]
[1752046776685,1.50610391,108890.0,108880.0,2.7113504]
[1752046777070,1.50610391,108890.0,108880.0,2.7273504]
[1752046777267,1.50610391,108890.0,108880.0,2.7113504]
[1752046778890,0.89795471,108890.0,108880.0,2.7113504]
[1752046779117,1.50610391,108890.0,108880.0,2.7113504]
[1752046781071,1.20202931,108890.0,108880.0,2.7113504]
[1752046783210,1.50610391,108890.0,108880.0,2.7113504]
[1752046783506,1.50610391,108890.0,108880.0,2.69411129]
[1752046783745,1.50610391,108890.0,108880.0,2.71135226]
[1752046784158,1.50610391,108890.0,108880.0,2.71035226]
[1752046784361,1.50618391,108890.0,108880.0,2.71035226]
[1752046786597,1.50618391,108890.0,108880.0,2.71035238]
[1752046789604,1.50618391,108890.0,108880.0,2.71035243]
[1752046792056,1.20210931,108890.0,108880.0,2.71035243]
[1752046792480,1.20210931,108890.0,108880.0,2.71035328]
[1752046793225,1.50618391,108890.0,108880.0,2.71035328]
[1752046800839,1.50618391,108890.0,108880.0,2.71035418]
[1752046803414,1.50618391,108890.0,108880.0,2.71035453]
[1752046805103,1.20210931,108890.0,108880.0,2.71035453]
[1752046810930,0.89803471,108890.0,108880.0,2.71035453]
[1752046811156,1.50618391,108890.0,108880.0,2.71035453]
[1752046812184,0.89803471,108890.0,108880.0,2.71035453]
[1752046812430,1.50618391,108890.0,108880.0,2.71035453]
[1752046816344,1.50618391,108890.0,108880.0,2.71035284]
[1752046818162,1.50618391,108890.0,108880.0,2.69311073]
[1752046818416,1.50618391,108890.0,108880.0,2.71034804]
[1752046819574,1.52248391,108890.0,108880.0,2.71034804]
[1752046820007,1.50618391,108890.0,108880.0,2.71034804]
[1752046824200,1.52218391,108890.0,108880.0,2.71034804]
[1752046824406,1.53748391,108890.0,108880.0,2.71034804]
[1752046825772,1.58748391,108890.0,108880.0,2.71034804]
[1752046830114,1.58748391,108890.0,108880.0,2.71034726]
[1752046830930,1.58748391,108890.0,108880.0,2.69310995]
[1752046831994,1.57218391,108890.0,108880.0,2.69310995]
[1752046832596,1.58828391,108890.0,108880.0,2.69310995]
[1752046836474,1.55618391,108890.0,108880.0,2.69310995]
[1752046836870,1.57148391,108890.0,108880.0,2.69310995]
[1752046839857,1.41702391,108890.0,108880.0,2.69310995]
[1752046840051,1.55686391,108890.0,108880.0,2.69310995]
[1752046842227,1.55686391,108890.0,108880.0,2.69311052]
[1752046845542,1.41702391,108890.0,108880.0,2.69311052]
[1752046845743,1.55686391,108890.0,108880.0,2.69311052]
[1752046847579,1.55686391,108890.0,108880.0,2.71034798]
[1752046847824,0.94871471,108890.0,108880.0,2.71034798]
[1752046848127,1.55686391,108890.0,108880.0,2.71034798]
[1752046850240,0.94871471,108890.0,108880.0,2.71034798]
[1752046850445,1.55686391,108890.0,108880.0,2.71034798]
[1752046853661,0.94871471,108890.0,108880.0,2.71034798]
[1752046853861,1.55686391,108890.0,108880.0,2.71034798]
[1752046854942,1.55686391,108890.0,108880.0,2.74234798]
[1752046855641,0.94871471,108890.0,108880.0,2.74234798]
[1752046855878,1.55686391,108890.0,108880.0,2.74234798]
[1752046858113,1.55686391,108890.0,108880.0,2.71034798]
[1752046861958,1.55686391,108890.0,108880.0,2.69311052]
[1752046862191,1.55686391,108890.0,108880.0,2.71035095]
[1752046862921,1.58816391,108890.0,108880.0,2.71035095]
[1752046863896,1.58716391,108890.0,108880.0,2.71035095]
[1752046864139,1.58916391,108890.0,108880.0,2.71035095]
[1752046864346,1.59116391,108890.0,108880.0,2.71035095]
[1752046866271,0.96671471,108890.0,108880.0,2.71035095]
[1752046866486,1.57486391,108890.0,108880.0,2.71035095]
[1752046873987,1.57486391,108890.0,108880.0,2.71035149]
[1752046874194,1.55986391,108890.0,108880.0,2.71035149]
[1752046875469,0.95171471,108890.0,108880.0,2.71035149]
[1752046875670,1.55986391,108890.0,108880.0,2.71035149]
[1752046879666,1.55986391,108890.0,108880.0,2.71035105]
[1752046882870,1.55986391,108890.0,108880.0,2.71034727]
[1752046884658,0.95171471,108890.0,108880.0,2.71034727]
[1752046884844,1.55986391,108890.0,108880.0,2.71034727]
[1752046888801,1.55986391,108890.0,108880.0,2.71034793]
[1752046889780,0.95171471,108890.0,108880.0,2.71034793]
[1752046889970,1.55986391,108890.0,108880.0,2.71034793]
[1752046891202,1.50986391,108890.0,108880.0,2.71034793]
[1752046891752,1.50986391,108890.0,108880.0,2.71034884]
[1752046892335,0.90171471,108890.0,108880.0,2.71034884]
[1752046892553,1.50986391,108890.0,108880.0,2.71034884]
[1752046896329,0.90171471,108890.0,108880.0,2.71034884]
[1752046896530,1.50986391,108890.0,108880.0,2.71034884]
[1752046896959,1.50986391,108890.0,108880.0,2.71035242]
[1752046900651,1.50986391,108890.0,108880.0,2.71035441]
[1752046904970,0.90171471,108890.0,108880.0,2.71035441]
[1752046905181,1.50986391,108890.0,108880.0,2.71035441]
[1752046908371,0.90171471,108890.0,108880.0,2.71035441]
[1752046908604,1.50986391,108890.0,108880.0,2.71035441]
[1752046911349,1.50986391,108890.0,108880.0,2.71035348]
[1752046918578,1.50986391,108890.0,108880.0,2.71034976]
[1752046921781,0.90171471,108890.0,108880.0,2.71034976]
[1752046921997,1.50986391,108890.0,108880.0,2.71034976]
[1752046922642,1.37002391,108890.0,108880.0,2.71034976]
[1752046922852,1.51210391,108890.0,108880.0,2.71034976]
[1752046923061,1.52710391,108890.0,108880.0,2.71034976]
[1752046923472,1.52800391,108890.0,108880.0,2.71034976]
[1752046923654,1.88916496,108890.0,108880.0,2.70115259]
[1752046924014,1.58509036,108890.0,108880.0,2.69195589]
[1752046924441,1.58509036,108890.0,108880.0,2.68275919]
[1752046924701,1.58509036,108890.0,108880.0,2.67629483]
[1752046924904,1.58509036,108890.0,108880.0,2.66709813]
[1752046925311,1.58509036,108890.0,108880.0,2.65790143]
[1752046925655,1.58509036,108890.0,108880.0,2.64870473]
[1752046926066,1.58509036,108890.0,108880.0,2.63950803]
[1752046926417,1.58509036,108890.0,108880.0,2.63031133]
[1752046926627,1.58509036,108890.0,108880.0,2.63030288]
[1752046926979,0.97694116,108890.0,108880.0,2.63030288]
[1752046927214,1.58509036,108890.0,108880.0,2.63030288]
[1752046932485,1.88916496,108890.0,108880.0,2.63030288]
[1752046932903,1.58509036,108890.0,108880.0,2.63030288]
[1752046933327,1.64013897,108890.0,108880.0,2.63030288]
[1752046933528,1.58509036,108890.0,108880.0,2.63030288]
[1752046933732,1.64013897,108890.0,108880.0,2.63030288]
[1752046933940,1.54380391,108890.0,108880.0,2.16665585]
[1752046935582,1.54380391,108890.0,108880.0,1.74246452]
[1752046935939,1.54380391,108890.0,108880.0,1.61836058]
[1752046938369,1.54380391,108890.0,108880.0,1.61834759]
[1752046942414,1.84787851,108890.0,108880.0,1.61834759]
[1752046945408,1.84787851,108890.0,108880.0,1.19402715]
[1752046945623,1.84787851,108890.0,108880.0,0.93959997]
[1752046945981,1.84787851,108890.0,108880.0,0.73326747]
[1752046946189,1.84787851,108890.0,108880.0,0.72406967]
[1752046946402,1.84787851,108890.0,108880.0,0.23495878]
[1752046946568,1.84787851,108890.0,108880.0,0.05567953]
[1752046946798,1.84787851,108890.0,108880.0,1e-08]
[1752046947003,0.53287271,108880.0,108870.0,0.0056112]
[1752046947148,1.77009037,108880.0,108870.0,0.0229193]
[1752046947408,1.80199037,108880.0,108870.0,0.0229193]
[1752046947608,1.82960037,108880.0,108870.0,0.0229193]
[1752046947820,1.81420037,108880.0,108870.0,0.0229193]
[1752046948551,1.79770037,108880.0,108870.0,0.0229193]
[1752046948962,0.19289042,108870.0,108860.0,0.0024]
[1752046949186,1.43010808,108870.0,108860.0,0.00890581]
[1752046949425,1.77010808,108870.0,108860.0,0.00890581]
[1752046949625,1.49364648,108870.0,108860.0,0.00890581]
[1752046950217,1.79772108,108870.0,108860.0,0.00890581]
[1752046950447,1.49364648,108870.0,108860.0,0.00890581]
[1752046952910,1.52153432,108870.0,108860.0,0.00890581]
[1752046953209,1.52153432,108870.0,108860.0,0.00890556]
[1752046958506,1.52153432,108870.0,108860.0,0.00244657]
[1752046958687,1.82560892,108870.0,108860.0,0.00244657]
[1752046958895,1.52153432,108870.0,108860.0,0.00244657]
[1752046959387,1.56282077,108870.0,108860.0,0.00244657]
[1752046959801,1.86689537,108870.0,108860.0,0.00244657]
[1752046960004,1.88389537,108870.0,108860.0,0.00244657]
[1752046960414,1.86789537,108870.0,108860.0,0.00244657]
[1752046960889,1.86789537,108870.0,108860.0,0.01966784]
[1752046961293,1.86689537,108870.0,108860.0,0.01966784]
[1752046961494,1.86989537,108870.0,108860.0,0.01966784]
[1752046962755,1.87189537,108870.0,108860.0,0.01966784]
[1752046963323,1.86989537,108870.0,108860.0,0.01966784]
[1752046963527,1.87289537,108870.0,108860.0,0.01966784]
[1752046963701,1.90529537,108870.0,108860.0,0.01966784]
[1752046964067,1.90529537,108870.0,108860.0,0.01046859]
[1752046964565,1.86400892,108870.0,108860.0,0.00126934]
[1752046964771,0.207449,108860.0,108850.0,0.0154]
[1752046964971,1.44422666,108860.0,108850.0,0.03800298]
[1752046965373,1.47184066,108860.0,108850.0,0.03800298]
[1752046966220,1.47484066,108860.0,108850.0,0.03800298]
[1752046968174,1.47484066,108860.0,108850.0,0.03800252]
[1752046968381,1.47484066,108860.0,108850.0,0.02880327]
[1752046968783,1.47484066,108860.0,108850.0,0.01960402]
[1752046969191,1.47484066,108860.0,108850.0,0.01040477]
[1752046969405,1.47484066,108860.0,108850.0,0.00120552]
[1752046969814,0.53292587,108850.0,108840.0,0.0024]
[1752046970066,1.46546893,108850.0,108840.0,0.00244662]
[1752046971419,1.46546893,108850.0,108840.0,0.00344662]
[1752046971621,1.46546893,108850.0,108840.0,0.01964662]
[1752046972385,1.46546893,108850.0,108840.0,0.03554662]
[1752046972585,0.85731973,108850.0,108840.0,0.03554662]
[1752046972791,1.16139433,108850.0,108840.0,0.03554662]
[1752046973208,1.46546893,108850.0,108840.0,0.03554662]
[1752046975035,0.85731973,108850.0,108840.0,0.03554662]
[1752046975258,1.46546893,108850.0,108840.0,0.03554662]
[1752046977032,1.46546893,108850.0,108840.0,0.05277434]
[1752046979685,1.46546893,108850.0,108840.0,0.03554662]
[1752046979914,1.46546893,108850.0,108840.0,0.0527792]
[1752046981843,1.46546893,108850.0,108840.0,0.05924172]
[1752046982038,1.46546893,108850.0,108840.0,0.05924254]
[1752046983426,1.32394893,108850.0,108840.0,0.05924254]
[1752046983633,1.46538893,108850.0,108840.0,0.05924254]
[1752046983809,1.16131433,108850.0,108840.0,0.05924254]
[1752046989768,1.46538893,108850.0,108840.0,0.05924254]
[1752046992228,1.46538893,108850.0,108840.0,0.02714254]
[1752046994868,1.43806363,108850.0,108840.0,0.02714254]
[1752046995018,1.35581348,108850.0,108840.0,0.02714254]
[1752047002603,1.35581348,108850.0,108840.0,0.00990914]
[1752047002808,1.35581348,108850.0,108840.0,0.02715502]
[1752047003857,1.37781417,108850.0,108840.0,0.02715502]
[1752047006472,1.4692511,108850.0,108840.0,0.02715502]
[1752047008690,1.4692511,108850.0,108840.0,0.02715967]
[1752047011681,1.4692511,108850.0,108840.0,0.02715959]
[1752047014880,1.5017511,108850.0,108840.0,0.02715959]
[1752047016098,1.3603111,108850.0,108840.0,0.02715959]
[1752047016308,1.5019511,108850.0,108840.0,0.02715959]
[1752047020007,1.3603111,108850.0,108840.0,0.02715959]
[1752047020211,1.5018711,108850.0,108840.0,0.02715959]
[1752047023810,1.5294861,108850.0,108840.0,0.02715959]
[1752047026477,1.5294861,108850.0,108840.0,0.02716016]
[1752047038358,1.5294861,108850.0,108840.0,0.02716004]
[1752047041735,1.4969861,108850.0,108840.0,0.02716004]
[1752047042140,1.5296861,108850.0,108840.0,0.02716004]
[1752047043395,1.5296861,108850.0,108840.0,0.02715947]
[1752047046016,1.5130861,108850.0,108840.0,0.02715947]
[1752047046224,1.5283861,108850.0,108840.0,0.02715947]
[1752047052365,1.5283861,108850.0,108840.0,0.02715808]
[1752047058297,1.5283861,108850.0,108840.0,0.02715896]
[1752047063595,1.54292695,108850.0,108840.0,0.01795948]
[1752047063988,1.54292695,108850.0,108840.0,0.00876]
[1752047064420,0.80109279,108840.0,108830.0,0.0056112]
[1752047064599,1.12452665,108840.0,108830.0,0.0056112]
[1752047064849,1.46452665,108840.0,108830.0,0.0056112]
[1752047065566,1.8141421,108840.0,108830.0,0.0056112]
[1752047065971,1.8417581,108840.0,108830.0,0.0056112]
[1752047066273,0.19296132,108830.0,108820.0,0.0024]
[1752047066482,1.12454438,108830.0,108820.0,0.0024]
[1752047066688,1.03310745,108830.0,108820.0,0.0024]
[1752047067513,1.03310745,108830.0,108820.0,0.0044]
[1752047068899,1.03310745,108830.0,108820.0,0.0054]
[1752047070863,0.72903285,108830.0,108820.0,0.0054]
[1752047071380,0.72903285,108830.0,108820.0,0.0034]
[1752047071585,0.82046978,108830.0,108820.0,0.0044]
[1752047072188,0.82046978,108830.0,108820.0,0.0034]
[1752047074140,1.12454438,108830.0,108820.0,0.0034]
[1752047074990,0.82046978,108830.0,108820.0,0.0034]
[1752047076127,0.82046978,108830.0,108820.0,0.00986063]
[1752047076276,0.82046978,108830.0,108820.0,0.02708789]
[1752047077754,0.82046978,108830.0,108820.0,0.0270863]
[1752047079003,0.82046978,108830.0,108820.0,0.0034]
[1752047079219,1.12454438,108830.0,108820.0,0.02708539]
[1752047081480,1.20454438,108830.0,108820.0,0.02708539]
[1752047082116,1.20454438,108830.0,108820.0,0.027084]
[1752047083198,1.12454438,108830.0,108820.0,0.027084]
[1752047086510,1.46454438,108830.0,108820.0,0.027084]
[1752047091495,1.54454438,108830.0,108820.0,0.027084]
[1752047092495,1.24046978,108830.0,108820.0,0.027084]
[1752047093742,1.24046978,108830.0,108820.0,0.02709658]
[1752047094541,1.09990978,108830.0,108820.0,0.02709658]
[1752047094750,1.24034978,108830.0,108820.0,0.02709658]
[1752047094985,1.09990978,108830.0,108820.0,0.02709658]
[1752047095265,1.24034978,108830.0,108820.0,0.02709658]
[1752047096096,1.09990978,108830.0,108820.0,0.02709658]
[1752047096298,1.24034978,108830.0,108820.0,0.05859658]
[1752047096863,0.71358663,108830.0,108820.0,0.05859658]
[1752047097069,1.15810123,108830.0,108820.0,0.05859658]
[1752047099602,0.61296098,108830.0,108820.0,0.253873]
[1752047099811,1.08504065,108830.0,108820.0,0.26076486]
[1752047100457,1.08504065,108830.0,108820.0,0.269954]
[1752047100665,1.08504065,108830.0,108820.0,0.27914306]
[1752047100866,0.70096605,108830.0,108820.0,0.27914306]
[1752047101069,1.00504065,108830.0,108820.0,0.27914306]
[1752047101275,1.00504065,108830.0,108820.0,0.269954]
[1752047101483,1.00504065,108830.0,108820.0,0.25271669]
[1752047101712,1.00504065,108830.0,108820.0,0.26996136]
[1752047102339,1.00504065,108830.0,108820.0,0.2883394]
[1752047102537,1.01422929,108830.0,108820.0,0.2883394]
[1752047103201,1.00504116,108830.0,108820.0,0.2883394]
[1752047104547,1.00504116,108830.0,108820.0,0.27269115]
[1752047104771,1.00504116,108830.0,108820.0,0.27915697]
[1752047106007,0.99585294,108830.0,108820.0,0.27915697]
[1752047106900,0.69177834,108830.0,108820.0,0.27915697]
[1752047107117,0.35177834,108830.0,108820.0,0.28834595]
[1752047107325,0.65585294,108830.0,108820.0,0.28834595]
[1752047108157,0.65585294,108830.0,108820.0,0.27915697]
[1752047108738,0.35177834,108830.0,108820.0,0.27915697]
[1752047108975,0.65585294,108830.0,108820.0,0.27915697]
[1752047110768,0.65585294,108830.0,108820.0,0.28834595]
[1752047112425,0.65585294,108830.0,108820.0,0.27915697]
[1752047113491,0.65585294,108830.0,108820.0,0.27269115]
[1752047113634,0.65585294,108830.0,108820.0,0.27915498]
[1752047114434,0.65585294,108830.0,108820.0,0.28834396]
[1752047115309,0.35177834,108830.0,108820.0,0.28834396]
[1752047115526,0.65585294,108830.0,108820.0,0.28834396]
[1752047115722,0.65585294,108830.0,108820.0,0.27915498]
[1752047116559,0.65585294,108830.0,108820.0,0.27914646]